fUST/lending_fUST_20251231
["ID","MTS","AMOUNT","RATE_DAILY","PERIOD"]
[400151338,1767157837947,-500.0,0.00012117,2]
[400151339,1767157837956,-500.0,0.00012117,2]
[400151340,1767157837965,-500.0,0.00012117,2]
[400151341,1767157837975,-292.29087452,0.00012117,2]
[400151342,1767157837984,-500.0,0.00012117,2]
[400151343,1767157837993,-500.0,0.00012117,2]
[400151344,1767157838003,-500.0,0.00012117,2]
[400151345,1767157838013,-500.0,0.00012117,2]
[400151346,1767157838023,-500.0,0.00012117,2]
[400151347,1767157838032,-500.0,0.00012117,2]
[400151348,1767157838041,-500.0,0.00012117,2]
[400151349,1767157838050,-500.0,0.00012117,2]
[400151350,1767157838060,-500.0,0.00012117,2]
[400151351,1767157838069,-500.0,0.00012117,2]
[400151352,1767157838078,-500.0,0.00012117,2]
[400151353,1767157838087,-500.0,0.00012117,2]
[400151354,1767157838096,-500.0,0.00012117,2]
[400151355,1767157838106,-448.0844805,0.00012117,2]
[400151356,1767157838115,-500.0,0.00012117,2]
[400151357,1767157838124,-500.0,0.00012117,2]
[400151358,1767157838133,-500.0,0.00012117,2]
[400151359,1767157838144,-500.0,0.00012117,2]
[400151360,1767157838153,-500.0,0.00012117,2]
[400151361,1767157838162,-500.0,0.00012117,2]
[400151362,1767157838171,-500.0,0.00012117,2]
[400151363,1767157838181,-500.0,0.00012117,2]
[400151364,1767157838191,-500.0,0.00012117,2]
[400151365,1767157838200,-500.0,0.00012117,2]
[400151366,1767157838209,-500.0,0.00012117,2]
[400151367,1767157838219,-500.0,0.00012117,2]
[400151368,1767157838228,-500.0,0.00012117,2]
[400151369,1767157838237,-500.0,0.00012117,2]
[400151370,1767157838246,-500.0,0.00012117,2]
[400151371,1767157838256,-500.0,0.00012117,2]
[400151372,1767157838265,-500.0,0.00012117,2]
[400151373,1767157838275,-500.0,0.00012117,2]
[400151374,1767157838285,-500.0,0.00012117,2]
[400151375,1767157838294,-500.0,0.00012117,2]
[400151376,1767157838304,-500.0,0.00012117,2]
[400151377,1767157838313,-500.0,0.00012117,2]
[400151378,1767157838323,-500.0,0.00012117,2]
[400151379,1767157838333,-500.0,0.00012117,2]
[400151380,1767157838342,-500.0,0.00012117,2]
[400151381,1767157838352,-500.0,0.00012117,2]
[400151382,1767157838361,-500.0,0.00012117,2]
[400151383,1767157838370,-500.0,0.00012117,2]
[400151384,1767157838379,-500.0,0.00012117,2]
[400151385,1767157838389,-500.0,0.00012117,2]
[400151386,1767157838399,-500.0,0.00012117,2]
[400151387,1767157838409,-500.0,0.00012117,2]
[400151388,1767157838418,-500.0,0.00012117,2]
[400151389,1767157838428,-500.0,0.00012117,2]
[400151390,1767157838438,-500.0,0.00012117,2]
[400151391,1767157838447,-500.0,0.00012117,2]
[400151392,1767157838456,-500.0,0.00012117,2]
[400151393,1767157838466,-500.0,0.00012117,2]
[400151394,1767157838475,-500.0,0.00012117,2]
[400151395,1767157838484,-374.23862167,0.00012117,2]
[400151396,1767157838493,-500.0,0.00012117,2]
[400151397,1767157838503,-500.0,0.00012117,2]
[400151398,1767157838512,-500.0,0.00012117,2]
[400151399,1767157838522,-500.0,0.00012117,2]
[400151400,1767157838531,-250.0,0.00012117,2]
[400151401,1767157838541,-50000.0,0.00012118,2]
[400151402,1767157838550,-153.87,0.00012119,2]
[400151403,1767157838560,-527.794,0.00012121,2]
[400151404,1767157838569,-500.0,0.00012124,2]
[400151405,1767157838578,-756.69060931,0.00012229,2]
[400151406,1767157838587,-2429.12,0.00012329,2]
[400151407,1767157838597,-2024.27,0.00012329,2]
[400151408,1767157838607,-2024.27,0.00012329,2]
[400151409,1767157838616,-300.0,0.00012367,2]
[400151410,1767157838625,-300.0,0.00012367,2]
[400151411,1767157838635,-300.0,0.00012367,2]
[400151412,1767157838644,-300.0,0.00012367,2]
[400151413,1767157838654,-300.0,0.00012367,2]
[400151414,1767157838668,-300.0,0.00012367,2]
[400151415,1767157838678,-300.0,0.00012367,2]
[400151416,1767157838688,-300.0,0.00012367,2]
[400151417,1767157838697,-300.0,0.00012367,2]
[400151418,1767157838707,-300.0,0.00012367,2]
[400151419,1767157838717,-300.0,0.00012367,2]
[400151420,1767157838726,-300.0,0.00012367,2]
[400151421,1767157838735,-300.0,0.00012367,2]
[400151422,1767157838746,-300.0,0.00012367,2]
[400151423,1767157838756,-300.0,0.00012367,2]
[400151424,1767157838766,-600.0,0.00012367,2]
[400151425,1767157838775,-153.88514916,0.00012393,2]
[400151426,1767157838784,-500.0,0.00012398,2]
[400151427,1767157838793,-200.0,0.00012414,3]
[400151428,1767157838803,-8516.47940583,0.00012563,2]
[400151429,1767157838812,-151.0,0.000126,2]
[400151430,1767157838821,-1770.28,0.00012648,2]
[400151431,1767157838830,-500.0,0.00012672,2]
[400151432,1767157838840,-837.72,0.0001269,2]
[400151433,1767157838850,-151.0,0.000127,2]
[400151434,1767157838859,-756.69060931,0.00012709,2]
[400151435,1767157838869,-52154.88729602,0.0001279,2]
[400151436,1767157838886,-14385.08167228,0.0001279,2]
[400151437,1767157838896,-151.0,0.000128,2]
[400151438,1767157838905,-151.0,0.000129,2]
[400151439,1767157838915,-500.0,0.00012946,2]
[400151440,1767157838925,-7134.06707243,0.00013,2]
[400151441,1767157838934,-756.69060931,0.00013188,2]
[400151442,1767157838945,-420.0,0.00013194,2]
[400151443,1767157838955,-355.0,0.00013194,2]
[400151444,1767157838964,-420.0,0.00013194,2]
[400151445,1767157838973,-151.0,0.000132,2]
[400151446,1767157838983,-500.0,0.0001322,2]
[400151447,1767157838992,-1680.0,0.00013221,2]
[400151448,1767157839001,-2655.43,0.00013223,2]
[400151449,1767157839011,-500.0,0.00013273,2]
[400151450,1767157839020,-500.0,0.00013273,2]
[400151451,1767157839029,-500.0,0.00013273,2]
[400151452,1767157839039,-500.0,0.00013273,2]
[400151453,1767157839048,-500.0,0.00013273,2]
[400151454,1767157839058,-500.0,0.00013273,2]
[400151455,1767157839067,-500.0,0.00013273,2]
[400151456,1767157839076,-500.0,0.00013273,2]
[400151457,1767157839085,-500.0,0.00013273,2]
[400151458,1767157839095,-500.0,0.00013273,2]
[400151459,1767157839104,-500.0,0.00013273,2]
[400151460,1767157839113,-500.0,0.00013273,2]
[400151461,1767157839123,-500.0,0.00013273,2]
[400151462,1767157839132,-167.36910648,0.00013273,2]
[400151463,1767157839144,-500.0,0.00013273,2]
[400151464,1767157839154,-500.0,0.00013273,2]
[400151465,1767157839163,-500.0,0.00013273,2]
[400151466,1767157839173,-500.0,0.00013273,2]
[400151467,1767157839184,-500.0,0.00013273,2]
[400151468,1767157839194,-500.0,0.00013273,2]
[400151469,1767157839204,-502.50925578,0.00013273,2]
[400151470,1767157839214,-500.0,0.00013273,2]
[400151471,1767157839234,-500.0,0.00013273,2]
[400151472,1767157839247,-500.0,0.00013273,2]
[400151473,1767157839258,-530.18035564,0.00013273,2]
[400151474,1767157839267,-500.0,0.00013273,2]
[400151475,1767157839277,-529.84736886,0.00013273,2]
[400151476,1767157839287,-500.0,0.00013273,2]
[400151477,1767157839297,-500.0,0.00013273,2]
[400151478,1767157839306,-520.05984388,0.00013273,2]
[400151479,1767157839315,-500.0,0.00013273,2]
[400151480,1767157839325,-500.0,0.00013273,2]
[400151481,1767157839334,-500.0,0.00013273,2]
[400151482,1767157839343,-500.0,0.00013273,2]
[400151483,1767157839353,-500.0,0.00013273,2]
[400151484,1767157839363,-500.0,0.00013273,2]
[400151485,1767157839373,-500.0,0.00013273,2]
[400151486,1767157839382,-500.0,0.00013273,2]
[400151487,1767157839391,-500.0,0.00013273,2]
[400151488,1767157839401,-232.27795913,0.00013273,2]
[400151489,1767157839410,-500.0,0.00013273,2]
[400151490,1767157839419,-500.0,0.00013273,2]
[400151491,1767157839429,-500.0,0.00013273,2]
[400151493,1767157839438,-500.0,0.00013273,2]
[400151495,1767157839448,-500.0,0.00013273,2]
[400151497,1767157839457,-205.30476225,0.00013273,2]
[400151499,1767157839467,-500.0,0.00013273,2]
[400151501,1767157839476,-494.0031485,0.00013273,2]
[400151503,1767157839486,-500.0,0.00013273,2]
[400151505,1767157839496,-500.0,0.00013273,2]
[400151507,1767157839505,-500.0,0.00013273,2]
[400151509,1767157839514,-500.0,0.00013273,2]
[400151511,1767157839524,-500.0,0.00013273,2]
[400151513,1767157839534,-1680.0,0.000133,2]
[400151515,1767157839544,-500.0,0.00013494,2]
[400151517,1767157839553,-10000.0,0.0001354,2]
[400151519,1767157839564,-720.0,0.00013604,2]
[400151521,1767157839573,-1075.60097895,0.00013659,2]
[400151523,1767157839583,-756.69060931,0.00013668,2]
[400151525,1767157839592,-500.0,0.00013671,2]
[400151527,1767157839601,-500.0,0.00013671,2]
[400151529,1767157839611,-500.0,0.00013671,2]
[400151531,1767157839620,-500.0,0.00013671,2]
[400151533,1767157839629,-500.0,0.00013671,2]
[400151534,1767157839638,-500.0,0.00013671,2]
[400151536,1767157839649,-500.0,0.00013671,2]
[400151538,1767157839658,-500.0,0.00013671,2]
[400151540,1767157839667,-500.0,0.00013671,2]
[400151542,1767157839676,-500.0,0.00013671,2]
[400151544,1767157839685,-500.0,0.00013671,2]
[400151546,1767157839695,-500.0,0.00013671,2]
[400151548,1767157839705,-500.0,0.00013671,2]
[400151550,1767157839715,-408.22885509,0.00013671,2]
[400151552,1767157839724,-300.0,0.00013673,2]
[400151554,1767157839733,-500.0,0.00013698,2]
[400151556,1767157839743,-515.15733931,0.00013698,2]
[400151558,1767157839752,-500.0,0.00013698,2]
[400151560,1767157839762,-192.79997823,0.00013698,2]
[400151562,1767157839771,-190.40044785,0.00013698,2]
[400151564,1767157839780,-1401.94,0.00013698,2]
[400151566,1767157839790,-1401.94,0.00013698,2]
[400151568,1767157839800,-1401.94,0.00013698,2]
[400151570,1767157839809,-1401.94,0.00013698,2]
[400151572,1767157839819,-1401.94,0.00013698,2]
[400151574,1767157839828,-1401.94,0.00013698,2]
[400151576,1767157839838,-1401.94,0.00013698,2]
[400151578,1767157839848,-1401.94,0.00013698,2]
[400151580,1767157839859,-1401.94,0.00013698,2]
[400151582,1767157839868,-1401.94,0.00013698,2]
[400151584,1767157839877,-1401.94,0.00013698,2]
[400151586,1767157839886,-1401.94,0.00013698,2]
[400151588,1767157839896,-1401.94,0.00013698,2]
[400151590,1767157839906,-1401.94,0.00013698,2]
[400151608,1767157840074,-1401.94,0.00013698,2]
[400151611,1767157840084,-353.15625135,0.00013698,2]
[400151624,1767157840217,-1048.78374865,0.00013698,2]
[400151626,1767157840231,-1401.94,0.00013698,2]
[400151628,1767157840241,-1401.94,0.00013698,2]
[400151630,1767157840250,-751.17472436,0.00013698,2]
[400151633,1767157840261,-307.8364998,0.00013698,2]
[400151635,1767157840274,-342.92877584,0.00013698,2]
[400151637,1767157840283,-1401.94,0.00013698,2]
[400151639,1767157840292,-1401.94,0.00013698,2]
[400151641,1767157840301,-1401.94,0.00013698,2]
[400151643,1767157840311,-1401.94,0.00013698,2]
[400151645,1767157840319,-1402.08191311,0.00013698,2]
[400151646,1767157840328,-500.0,0.00013698,2]
[400151649,1767157840338,-262.16767073,0.00013698,2]
[400151650,1767157840347,-1435.82,0.00013698,2]
[400151653,1767157840357,-1435.82,0.00013698,2]
[400151654,1767157840367,-1435.82,0.00013698,2]
[400151656,1767157840376,-1435.82,0.00013698,2]
[400151658,1767157840385,-1435.82,0.00013698,2]
[400151660,1767157840394,-1435.82,0.00013698,2]
[400151662,1767157840403,-1435.82,0.00013698,2]
[400151664,1767157840412,-1435.82,0.00013698,2]
[400151666,1767157840421,-1435.82,0.00013698,2]
[400151668,1767157840430,-1435.82,0.00013698,2]
[400151670,1767157840439,-1435.82,0.00013698,2]
[400151672,1767157840448,-1435.82,0.00013698,2]
[400151674,1767157840457,-1435.82,0.00013698,2]
[400151676,1767157840467,-1435.82,0.00013698,2]
[400151678,1767157840476,-1435.82,0.00013698,2]
[400151680,1767157840486,-1435.82,0.00013698,2]
[400151682,1767157840496,-1435.82,0.00013698,2]
[400151684,1767157840505,-1435.82,0.00013698,2]
[400151686,1767157840515,-1435.82,0.00013698,2]
[400151688,1767157840524,-1435.82,0.00013698,2]
[400151690,1767157840533,-1435.82,0.00013698,2]
[400151692,1767157840543,-1435.82,0.00013698,2]
[400151694,1767157840552,-1435.82,0.00013698,2]
[400151696,1767157840561,-1436.03,0.00013698,2]
[400151698,1767157840570,-79591.7203982,0.00013699,2]
[400151700,1767157840580,-15490.5579877,0.00013699,2]
[400151702,1767157840589,-4005.954083,0.00013699,2]
[400151704,1767157840599,-500.0,0.00013699,2]
[400151706,1767157840608,-500.0,0.00013699,2]
[400151708,1767157840618,-500.0,0.00013699,2]
[400151710,1767157840627,-500.0,0.00013699,2]
[400151712,1767157840636,-500.0,0.00013699,2]
[400151714,1767157840645,-500.0,0.00013699,2]
[400151716,1767157840655,-500.0,0.00013699,2]
[400151718,1767157840664,-500.0,0.00013699,2]
[400151720,1767157840674,-500.0,0.00013699,2]
[400151722,1767157840683,-500.0,0.00013699,2]
[400151724,1767157840691,-500.0,0.00013699,2]
[400151726,1767157840700,-500.0,0.00013699,2]
[400151728,1767157840710,-500.0,0.00013699,2]
[400151730,1767157840719,-500.0,0.00013699,2]
[400151732,1767157840728,-500.0,0.00013699,2]
[400151734,1767157840737,-500.0,0.00013699,2]
[400151736,1767157840746,-500.0,0.00013699,2]
[400151738,1767157840755,-500.0,0.00013699,2]
[400151739,1767157840764,-159.68059141,0.00013699,2]
[400151741,1767157840775,-500.0,0.00013699,2]
[400151743,1767157840784,-500.0,0.00013699,2]
[400151745,1767157840793,-500.0,0.00013699,2]
[400151747,1767157840803,-500.0,0.00013699,2]
[400151749,1767157840812,-500.0,0.00013699,2]
[400151751,1767157840821,-500.0,0.00013699,2]
[400151753,1767157840831,-500.0,0.00013699,2]
[400151755,1767157840840,-150.35034149,0.00013699,2]
[400151757,1767157840850,-500.0,0.00013699,2]
[400151759,1767157840858,-500.0,0.00013699,2]
[400151761,1767157840868,-587.30545204,0.00013699,2]
[400151763,1767157840877,-500.0,0.00013699,2]
[400151765,1767157840886,-242.87306652,0.00013699,2]
[400151767,1767157840895,-500.0,0.00013699,2]
[400151769,1767157840904,-346.46150426,0.00013699,2]
[400151771,1767157840913,-500.0,0.00013699,2]
[400151773,1767157840922,-500.0,0.00013699,2]
[400151775,1767157840931,-500.0,0.00013699,2]
[400151777,1767157840940,-158.18512633,0.00013699,2]
[400151779,1767157840950,-298.53483888,0.00013699,2]
[400151781,1767157840959,-158.38534385,0.00013699,2]
[400151783,1767157840968,-160.18745103,0.00013699,2]
[400151785,1767157840977,-158.38886572,0.00013699,2]
[400151787,1767157840986,-500.0,0.00013699,2]
[400151789,1767157840995,-500.0,0.00013699,2]
[400151790,1767157841004,-500.0,0.00013699,2]
[400151793,1767157841013,-500.0,0.00013699,2]
[400151794,1767157841023,-500.0,0.00013699,2]
[400151796,1767157841033,-260.28159851,0.00013699,2]
[400151798,1767157841042,-303.93264249,0.00013699,2]
[400151801,1767157841051,-565.555714,0.00013699,2]
[400151803,1767157841061,-500.0,0.00013699,2]
[400151804,1767157841070,-160.15137988,0.00013699,2]
[400151807,1767157841080,-500.0,0.00013699,2]
[400151809,1767157841089,-500.0,0.00013699,2]
[400151811,1767157841099,-500.0,0.00013699,2]
[400151813,1767157841109,-500.0,0.00013699,2]
[400151815,1767157841118,-500.0,0.00013699,2]
[400151817,1767157841127,-500.0,0.00013699,2]
[400151819,1767157841136,-500.0,0.00013699,2]
[400151821,1767157841149,-260.2481779,0.00013699,2]
[400151823,1767157841158,-158.38534191,0.00013699,2]
[400151825,1767157841168,-158.38534465,0.00013699,2]
[400151826,1767157841178,-500.0,0.00013699,2]
[400151828,1767157841187,-500.0,0.00013699,2]
[400151830,1767157841196,-165.03764715,0.00013699,2]
[400151832,1767157841205,-500.0,0.00013699,2]
[400151834,1767157841214,-500.0,0.00013699,2]
[400151836,1767157841223,-416.75445415,0.00013699,2]
[400151838,1767157841232,-158.10807846,0.00013699,2]
[400151840,1767157841241,-254.02465024,0.00013699,2]
[400151842,1767157841250,-500.0,0.00013699,2]
[400151844,1767157841259,-237.8458189,0.00013699,2]
[400151846,1767157841268,-160.3309554,0.00013699,2]
[400151848,1767157841277,-158.38533297,0.00013699,2]
[400151850,1767157841287,-157.18386067,0.00013699,2]
[400151852,1767157841296,-500.0,0.00013699,2]
[400151854,1767157841305,-500.0,0.00013699,2]
[400151856,1767157841315,-158.18512013,0.00013699,2]
[400151858,1767157841323,-158.39206841,0.00013699,2]
[400151860,1767157841332,-188.42009972,0.00013699,2]
[400151862,1767157841341,-158.38532202,0.00013699,2]
[400151864,1767157841351,-500.0,0.00013699,2]
[400151866,1767157841360,-500.0,0.00013699,2]
[400151868,1767157841369,-500.0,0.00013699,2]
[400151870,1767157841378,-500.0,0.00013699,2]
[400151871,1767157841387,-500.0,0.00013699,2]
[400151873,1767157841396,-500.0,0.00013699,2]
[400151875,1767157841405,-500.0,0.00013699,2]
[400151877,1767157841415,-500.0,0.00013699,2]
[400151879,1767157841425,-500.0,0.00013699,2]
[400151881,1767157841434,-500.0,0.00013699,2]
[400151883,1767157841443,-500.0,0.00013699,2]
[400151885,1767157841452,-500.0,0.00013699,2]
[400151887,1767157841461,-500.0,0.00013699,2]
[400151889,1767157841470,-163.65866633,0.00013699,2]
[400151891,1767157841479,-500.0,0.00013699,2]
[400151893,1767157841488,-309.28633635,0.00013699,2]
[400151895,1767157841497,-178.08460977,0.00013699,2]
[400151897,1767157841506,-540.63230604,0.00013699,2]
[400151899,1767157841515,-525.82485317,0.00013699,2]
[400151901,1767157841524,-500.0,0.00013699,2]
[400151903,1767157841533,-500.0,0.00013699,2]
[400151905,1767157841542,-500.0,0.00013699,2]
[400151907,1767157841551,-500.0,0.00013699,2]
[400151909,1767157841560,-500.0,0.00013699,2]
[400151911,1767157841571,-500.0,0.00013699,2]
[400151912,1767157841580,-500.0,0.00013699,2]
[400151915,1767157841589,-500.0,0.00013699,2]
[400151916,1767157841598,-500.0,0.00013699,2]
[400151918,1767157841608,-500.0,0.00013699,2]
[400151920,1767157841617,-500.0,0.00013699,2]
[400151922,1767157841627,-500.0,0.00013699,2]
[400151923,1767157841637,-500.0,0.00013699,2]
[400151924,1767157841647,-213.3181846,0.00013699,2]
[400151925,1767157841656,-500.0,0.00013699,2]
[400151926,1767157841666,-500.0,0.00013699,2]
[400151927,1767157841675,-500.0,0.00013699,2]
[400151928,1767157841684,-500.0,0.00013699,2]
[400151929,1767157841694,-500.0,0.00013699,2]
[400151930,1767157841703,-151.0,0.00013699,2]
[400151931,1767157841712,-151.0,0.00013699,2]
[400151932,1767157841722,-156.562526,0.00013699,2]
[400151933,1767157841731,-151.0,0.000137,2]
[400151934,1767157841741,-303.512707,0.00013768,2]
[400151935,1767157841750,-3540.57,0.00013798,2]
[400151936,1767157841759,-1000.0,0.00013821,2]
[400151937,1767157841769,-1044.63270575,0.00013821,2]
[400151938,1767157841779,-913.99757981,0.00013821,2]
[400151939,1767157841788,-1000.0,0.00013821,2]
[400151940,1767157841798,-1000.0,0.00013821,2]
[400151941,1767157841808,-381.16221649,0.00013821,2]
[400151943,1767157841817,-1000.0,0.00013821,2]
[400151944,1767157841826,-1000.0,0.00013821,2]
[400151946,1767157841836,-177.12142034,0.00013821,2]
[400151948,1767157841846,-585.46093203,0.00013821,2]
[400151950,1767157841856,-1000.0,0.00013821,2]
[400151952,1767157841865,-502.45533374,0.00013821,2]
[400151954,1767157841874,-815.88685405,0.00013821,2]
[400151956,1767157841883,-1000.0,0.00013821,2]
[400151958,1767157841892,-1000.0,0.00013821,2]
[400151960,1767157841901,-160.63497667,0.00013821,2]
[400151962,1767157841911,-1000.0,0.00013821,2]
[400151964,1767157841920,-1000.0,0.00013821,2]
[400151966,1767157841929,-1000.0,0.00013821,2]
[400151968,1767157841938,-1000.0,0.00013821,2]
[400151970,1767157841947,-1000.0,0.00013821,2]
[400151972,1767157841956,-1000.0,0.00013821,2]
[400151974,1767157841966,-1000.0,0.00013821,2]
[400151976,1767157841975,-1000.0,0.00013821,2]
[400151978,1767157841984,-1000.0,0.00013821,2]
[400151980,1767157841994,-1000.0,0.00013821,2]
[400151982,1767157842002,-1000.0,0.00013821,2]
[400151984,1767157842011,-1000.0,0.00013821,2]
[400151985,1767157842020,-1000.0,0.00013821,2]
[400151988,1767157842029,-1000.0,0.00013821,2]
[400151989,1767157842038,-1000.0,0.00013821,2]
[400151992,1767157842048,-1000.0,0.00013821,2]
[400151994,1767157842057,-1000.0,0.00013821,2]
[400151995,1767157842067,-1000.0,0.00013821,2]
[400151998,1767157842076,-1000.0,0.00013821,2]
[400151999,1767157842085,-1000.0,0.00013821,2]
[400152001,1767157842095,-1000.0,0.00013821,2]
[400152003,1767157842104,-1000.0,0.00013821,2]
[400152005,1767157842113,-1000.0,0.00013821,2]
[400152007,1767157842122,-1000.0,0.00013821,2]
[400152009,1767157842131,-1000.0,0.00013821,2]
[400152011,1767157842142,-501.55479895,0.00013821,2]
[400152013,1767157842152,-1102.47879957,0.00013821,2]
[400152015,1767157842160,-1000.0,0.00013821,2]
[400152017,1767157842169,-1000.0,0.00013821,2]
[400152019,1767157842179,-155.015211,0.00013821,2]
[400152021,1767157842189,-1328.264432,0.00013821,2]
[400152023,1767157842199,-1328.264432,0.00013821,2]
[400152025,1767157842208,-1328.264432,0.00013821,2]
[400152028,1767157842218,-1328.264432,0.00013821,2]
[400152031,1767157842227,-163.51788502,0.00013973,2]
[400152034,1767157842236,-371.57949425,0.00014002,2]
[400152036,1767157842244,-194.747586,0.00014047,2]
[400152039,1767157842253,-194.747586,0.00014047,2]
[400152041,1767157842262,-194.747586,0.00014047,2]
[400152043,1767157842271,-194.747586,0.00014047,2]
[400152045,1767157842280,-756.69060931,0.00014147,2]
[400152047,1767157842289,-600.0,0.00014221,2]
[400152049,1767157842299,-251.84601956,0.00014247,2]
[400152051,1767157842308,-1000.0,0.00014247,2]
[400152053,1767157842317,-433.15519118,0.00014247,2]
[400152055,1767157842326,-1000.0,0.00014247,2]
[400152057,1767157842335,-1000.0,0.00014247,2]
[400152059,1767157842344,-1000.0,0.00014247,2]
[400152061,1767157842353,-1000.0,0.00014247,2]
[400152063,1767157842362,-1000.0,0.00014247,2]
[400152065,1767157842372,-1000.0,0.00014247,2]
[400152067,1767157842381,-1000.0,0.00014247,2]
[400152069,1767157842389,-1000.0,0.00014247,2]
[400152071,1767157842399,-1000.0,0.00014247,2]
[400152073,1767157842408,-1005.9697834,0.00014247,2]
[400152075,1767157842418,-688.75934812,0.00014247,2]
[400152077,1767157842427,-1002.4340095,0.00014247,2]
[400152078,1767157842436,-1000.0,0.00014247,2]
[400152081,1767157842445,-1000.0,0.00014247,2]
[400152082,1767157842455,-1000.0,0.00014247,2]
[400152084,1767157842464,-1000.0,0.00014247,2]
[400152086,1767157842473,-1000.0,0.00014247,2]
[400152088,1767157842482,-500.4478313,0.00014247,2]
[400152090,1767157842491,-1000.0,0.00014247,2]
[400152092,1767157842500,-1000.0,0.00014247,2]
[400152094,1767157842510,-1000.0,0.00014247,2]
[400152096,1767157842519,-500.68443154,0.00014247,2]
[400152098,1767157842528,-911.90264951,0.00014247,2]
[400152100,1767157842537,-1000.0,0.00014247,2]
[400152102,1767157842549,-1000.0,0.00014247,2]
[400152104,1767157842558,-1000.0,0.00014247,2]
[400152105,1767157842567,-500.48099046,0.00014247,2]
[400152106,1767157842576,-297.63479171,0.00014247,2]
[400152107,1767157842585,-1000.0,0.00014247,2]
[400152108,1767157842595,-1000.0,0.00014247,2]
[400152109,1767157842605,-1000.0,0.00014247,2]
[400152110,1767157842614,-1000.0,0.00014247,2]
[400152111,1767157842623,-1000.0,0.00014247,2]
[400152112,1767157842632,-1000.75482131,0.00014247,2]
[400152113,1767157842642,-1000.0,0.00014247,2]
[400152114,1767157842651,-1000.0,0.00014247,2]
[400152115,1767157842660,-1000.0,0.00014247,2]
[400152116,1767157842670,-1000.0,0.00014247,2]
[400152117,1767157842679,-1000.0,0.00014247,2]
[400152118,1767157842688,-609.17214565,0.00014247,2]
[400152119,1767157842697,-1000.0,0.00014247,2]
[400152120,1767157842707,-1000.0,0.00014247,2]
[400152121,1767157842716,-1000.0,0.00014247,2]
[400152123,1767157842725,-1000.0,0.00014247,2]
[400152125,1767157842734,-1000.0,0.00014247,2]
[400152127,1767157842743,-1000.0,0.00014247,2]
[400152128,1767157842752,-439.97362328,0.00014247,2]
[400152130,1767157842761,-495.63847364,0.00014247,2]
[400152145,1767157842892,-1000.0,0.00014247,2]
[400152147,1767157842902,-1000.0,0.00014247,2]
[400152149,1767157842912,-1000.0,0.00014247,2]
[400152152,1767157842922,-1000.0,0.00014247,2]
[400152153,1767157842931,-1000.0,0.00014247,2]
[400152155,1767157842940,-866.45646788,0.00014247,2]
[400152157,1767157842950,-1000.0,0.00014247,2]
[400152158,1767157842959,-1000.0,0.00014247,2]
[400152159,1767157842968,-1000.0,0.00014247,2]
[400152160,1767157842978,-345.96405937,0.00014247,2]
[400152161,1767157842987,-1000.0,0.00014247,2]
[400152162,1767157842996,-454.65827101,0.00014247,2]
[400152163,1767157843005,-1000.0,0.00014247,2]
[400152164,1767157843014,-295.43360933,0.00014247,2]
[400152165,1767157843024,-1000.0,0.00014247,2]
[400152166,1767157843033,-1000.0,0.00014247,2]
[400152167,1767157843042,-1000.0,0.00014247,2]
[400152168,1767157843051,-1000.0,0.00014247,2]
[400152170,1767157843060,-941.53284855,0.00014247,2]
[400152172,1767157843069,-1000.0,0.00014247,2]